Cogmind - Beta 9.4 @@@ ROGUE MODE // 2020.03.15 @ 12:50:17 Player: TBExtent Result: Escaped! Performance ------------- Evolutions (9) 4500 Regions Visited (30) 6000 Robots Destroyed (191) 955 Value Destroyed (6034) 6034 Prototype IDs (90) 1800 Alien Tech Used (3) 600 Bonus (10593) 10593 TOTAL SCORE: 30482 Bonus ------- High Alert Combat Kills 76 Aligned with FarCom 300 Met Data Miner 300 Met Zhirov 300 Found Hidden Lab 3000 Pursued by Intercept 500 Acquired SGEMP 2000 Delivered SGEMP 2000 Win 3000 Friendly Fire -883 Cogmind --------- Core Integrity 1573/1600 Matter 270/300 Energy 334/350 System Corruption 0% Temperature Cool (16) Movement Flying (24) Location To Epsilon Eridani Parts ------- > --- POWER (1) -------- Quantum Reactor > --- PROPULSION (6) --- Improved Cesium-ion Thruster Experimental Cesium-ion Thruster Cooled Impulse Thruster Impulse Thruster Array > --- UTILITY (16) ----- Medium Storage Unit Large Storage Unit Long-range Sensor Array Experimental Signal Interpreter Experimental Armor Integrity Analyzer Experimental Phase Shifter Improved Propulsion Shielding EM Disruption Field Experimental Hacking Suite System Mapper Advanced System Shield Experimental System Shield > --- WEAPON (2) ------- Nanosword > --- INVENTORY (14) --- Faulty Cooled Field Propulsion Drive Cooled Field Propulsion Drive Inertial Stasis Machine Nanoactuators Improved Stasis Canceller Advanced Phase Shifter Core Reset Matrix Nanosword Nanosword Peak State ------------ > --- POWER ------------ Light Particle Reactor > --- PROPULSION ------- Experimental Cesium-ion Thruster Experimental Cesium-ion Thruster Impulse Thruster Array Cooled Q-thruster > --- UTILITY ---------- Large Storage Unit Large Storage Unit Experimental Sensor Array Experimental Signal Interpreter Advanced Reaction Control System Experimental Propulsion Shielding Experimental Utility Shielding Advanced Hacking Suite Experimental Hacking Suite Experimental Hacking Suite Deep Network Scanner Advanced System Shield Experimental System Shield Experimental System Shield Experimental System Shield > --- WEAPON ----------- Nanosword Nanosword > --- INVENTORY -------- Improved Cesium-ion Thruster Improved Cesium-ion Thruster Experimental Cesium-ion Thruster Cooled Impulse Thruster Impulse Thruster Array Cooled Q-thruster Inertial Stasis Machine Long-range Sensor Array Nanoactuators Improved Stasis Canceller Advanced Phase Shifter Core Reset Matrix Nanosword [Rating: 174] Favorites ----------- Power Light Nuclear Core Engine Improved Deuterium Engine Power Core Light Nuclear Core Reactor Light Particle Reactor Propulsion Light Treads Treads Light Treads Leg Aluminum Leg Hover Unit Linear Gravjet Flight Unit Experimental Cesium-ion Thruster Utility High-capacity Storage Unit Device Fusion Compressor Storage High-capacity Storage Unit Processor 0b10 Alert Chip Hackware Advanced Hacking Suite Protection Experimental Propulsion Shielding Weapon Power Sword Energy Gun Particle Gun Ballistic Gun Heavy Assault Rifle Ballistic Cannon Flak Cannon Launcher EMP Blaster Special Weapon Guided Remote Datajack Impact Weapon Hammer Slashing Weapon Power Sword Build | -11 -10 -10 -9 -9 -9 -8 -8 -8 -7 -7 -7 -7 -6 -6 -6 -6 -5 -4 -4 -4 -4 -4 -4 -3 -3 -3 -3 -2 -2 -1 ------- Run | Scr Mat Min Mat Min Exi Min Mat Sto Fac Low Low Dat Pro Fac Low Low Fac Fac Was Fac Upp Upp Zhi Pro Res Arm Lab Res Tes Acc Slots Evolved 18 | . . . 2 . . . 2 . 2 . . . . 2 . . 2 2 . . . . . . 2 . . 2 . 2 Power . | . . . . . . . . . . . . . . . . . . . . . . . . . . . . . . . Propulsion 4 | . . . 1 . . . . . . . . . . . . . 1 . . . . . . . 1 . . . . 1 Utility 14 | . . . 1 . . . 2 . 2 . . . . 2 . . 1 2 . . . . . . 1 . . 2 . 1 Weapon . | . . . . . . . . . . . . . . . . . . . . . . . . . . . . . . . Parts Attached 244 | . 17 5 17 8 . 11 40 10 14 1 . 3 1 13 . . 16 2 . 11 2 . 7 1 16 19 10 15 5 . Power 23 | . 3 . 2 . . 1 4 . 2 . . . 1 3 . . . . . 1 . . . . 3 2 . 1 . . Engine 6 | . 2 . 1 . . . 3 . . . . . . . . . . . . . . . . . . . . . . . Core 12 | . 1 . 1 . . 1 1 . 2 . . . 1 3 . . . . . 1 . . . . 1 . . . . . Reactor 5 | . . . . . . . . . . . . . . . . . . . . . . . . . 2 2 . 1 . . Propulsion 55 | . 5 . 5 4 . 3 8 4 3 1 . . . 1 . . 7 . . 1 . . 1 . 3 3 . 6 . . Treads 26 | . 2 . 5 4 . 3 8 4 . . . . . . . . . . . . . . . . . . . . . . Leg 3 | . 3 . . . . . . . . . . . . . . . . . . . . . . . . . . . . . Wheel . | . . . . . . . . . . . . . . . . . . . . . . . . . . . . . . . Hover 1 | . . . . . . . . . . . . . . . . . 1 . . . . . . . . . . . . . Flight 25 | . . . . . . . . . 3 1 . . . 1 . . 6 . . 1 . . 1 . 3 3 . 6 . . Utility 91 | . 4 . 2 . . . 4 . 7 . . 3 . 6 . . 4 2 . 9 . . 6 1 10 12 8 8 5 . Device 30 | . . . 1 . . . . . . . . 1 . 1 . . 3 . . 4 . . 1 . 2 7 5 4 1 . Storage 15 | . 4 . 1 . . . 2 . 1 . . . . . . . 1 . . . . . 1 . 1 . . 3 1 . Processor 5 | . . . . . . . 1 . 2 . . . . . . . . . . 1 . . . . . . . . 1 . Hackware 28 | . . . . . . . . . 3 . . 1 . 4 . . . 2 . 3 . . 1 1 7 2 2 1 1 . Protection 13 | . . . . . . . 1 . 1 . . 1 . 1 . . . . . 1 . . 3 . . 3 1 . 1 . Artifact . | . . . . . . . . . . . . . . . . . . . . . . . . . . . . . . . Weapon 75 | . 5 5 8 4 . 7 24 6 2 . . . . 3 . . 5 . . . 2 . . . . 2 2 . . . Energy Gun 16 | . 5 3 4 2 . . 2 . . . . . . . . . . . . . . . . . . . . . . . Energy Cannon . | . . . . . . . . . . . . . . . . . . . . . . . . . . . . . . . Ballistic Gun 22 | . . 1 2 1 . 4 10 4 . . . . . . . . . . . . . . . . . . . . . . Ballistic Cannon 1 | . . . . . . . 1 . . . . . . . . . . . . . . . . . . . . . . . Launcher 5 | . . . . 1 . 2 2 . . . . . . . . . . . . . . . . . . . . . . . Special Weapon 2 | . . . . . . . . . . . . . . . . . . . . . 1 . . . . . 1 . . . Impact Weapon 1 | . . 1 . . . . . . . . . . . . . . . . . . . . . . . . . . . . Slashing Weapon 28 | . . . 2 . . 1 9 2 2 . . . . 3 . . 5 . . . 1 . . . . 2 1 . . . Piercing Weapon . | . . . . . . . . . . . . . . . . . . . . . . . . . . . . . . . Special Melee Weapon . | . . . . . . . . . . . . . . . . . . . . . . . . . . . . . . . Unidentified Prototypes 13 | . . . 1 . . . . . . . . 1 . . . . . . . . . . 3 . . 1 4 1 2 . Parts Lost 77 | . 8 3 6 6 . 5 15 2 1 2 . . 3 1 . . . . . 3 . . . 1 3 1 . 16 1 . Power 11 | . 2 . 1 1 . . 3 . . . . . 2 . . . . . . 1 . . . . . . . 1 . . Propulsion 25 | . 3 . 1 3 . 4 6 . 1 1 . . 1 . . . . . . . . . . . . . . 5 . . Utility 20 | . . . . . . . 1 . . 1 . . . 1 . . . . . 2 . . . 1 2 1 . 10 1 . Weapon 21 | . 3 3 4 2 . 1 5 2 . . . . . . . . . . . . . . . . 1 . . . . . Highest Loss Streak 16 | . 4 2 3 6 . 3 7 2 1 2 . . 2 1 . . . . . 2 . . . 1 1 1 . 16 1 . Average Slot Usage (%) 94 | . 98 99 99 91 88 97 94 100 89 88 84 90 91 83 86 . 91 92 94 93 94 94 93 93 93 92 95 75 68 72 Engine 2 | . 12 . 6 . . . 3 9 . . . . . . . . . . . . . . . . . . . . . . Core 4 | . 1 14 4 4 . 10 4 . 6 7 7 7 7 4 6 . 5 5 5 5 5 5 5 5 1 . . . . . Treads 15 | . 3 28 33 32 33 31 26 27 2 . . . . . . . . . . . . . . . . . . . . . Leg 2 | . 24 . . . . . . . . . . . . . . . . . . . . . . . . . . . . . Flight 7 | . . . . . . . . . 20 22 23 23 22 18 20 . 17 15 15 15 15 15 15 15 19 19 19 14 17 16 Device 3 | . . . 3 . . . . . . . . . . . 6 . 11 10 10 10 10 10 10 10 12 6 4 6 11 12 Storage 22 | . 27 28 28 33 33 33 33 36 10 7 7 7 7 6 6 . 10 10 10 10 10 10 10 10 9 9 9 5 6 8 Processor 4 | . . . . . . . 6 9 13 15 15 15 15 13 13 . 11 10 10 9 10 10 10 6 4 4 4 4 5 8 Hackware 11 | . . . . . . . . . 20 19 15 21 23 27 26 . 23 29 31 28 26 26 26 28 29 31 33 27 16 16 Protection 1 | . . . . . . . 2 . 5 7 7 7 7 5 6 . . . . 3 5 5 4 5 3 6 9 4 1 4 Energy Gun 3 | . 17 22 10 4 . . . . . . . . . . . . . . . . . . . . . . . . . . Ballistic Gun 8 | . 10 5 11 17 22 21 13 15 . . . . . . . . . . . . . . . . . . . . . . Slashing Weapon 3 | . . . . . . . 2 2 7 7 7 7 7 5 . . 7 10 10 10 10 10 10 10 7 8 9 6 4 4 Naked Turns . | . . . . . . . . . . . . . . . . . . . . . . . . . . . . . . . Heaviest Build 146 | 11 75 75 110 108 102 107 146 130 127 18 18 18 18 20 17 17 35 35 35 36 35 35 35 35 44 48 46 55 53 53 Greatest Support 66 | 20 40 40 63 63 60 60 60 66 63 18 18 18 18 18 18 18 36 35 35 38 38 38 38 37 49 49 64 55 53 53 Greatest Overweight (x) 17 | . 3 1 1 5 1 2 6 2 2 . . . 1 1 . . 1 1 . . . . . . . . . 17 . . Average Overweight (x) . | . 2 1 1 1 1 1 2 1 . . . . . . . . . . . . . . . . . . . . . . Largest Inventory Capacity 38 | . 20 20 28 28 28 28 36 34 38 8 8 8 8 8 8 8 12 12 12 12 12 12 12 12 18 14 14 16 14 14 Average Capacity 20 | . 17 20 25 28 28 28 33 34 11 8 8 8 8 8 8 8 11 12 12 12 12 12 12 12 12 14 14 11 12 14 Most Carried 36 | . 20 20 28 28 26 28 36 34 33 8 8 8 7 8 8 8 12 12 11 12 12 12 12 12 14 14 14 15 11 9 Average Carried 19 | . 16 18 24 25 24 27 32 33 11 7 8 7 6 6 8 8 11 11 11 10 12 12 11 12 11 13 13 10 8 9 Final Capacity 34 | 6 20 20 28 28 28 28 34 34 8 8 8 8 8 8 8 8 12 12 12 12 12 12 12 12 14 14 14 8 14 14 Final Carried 34 | 6 20 19 28 24 26 28 34 33 8 8 8 7 6 8 8 8 12 11 11 12 12 12 12 12 14 13 14 7 11 9 Class Distribution -------------------- 56% | Hauler-Mutant 15% | Wizard-Sprinter 10% | Hacker-Scout 8% | Wizard-Scout 6% | Hacker-Sprinter Dominant Class ---------------- Hauler-Mutant | -10/Materials Hauler-Mutant | -10/Mines Hauler-Mutant | -9/Materials Hauler-Mutant | -9/Mines Hauler-Mutant | -9/Exiles Hauler-Mutant | -8/Mines Hauler-Mutant | -8/Materials Hauler-Mutant | -8/Storage Hacker-Sprinter | -7/Factory Hacker-Sprinter | -7/Lower Caves Hacker-Sprinter | -7/Lower Caves Hacker-Sprinter | -7/Data Miner Hacker-Sprinter | -6/Proximity Caves Hacker-Sprinter | -6/Factory Hacker-Scout | -6/Lower Caves Hacker-Scout | -6/Lower Caves Hacker-Scout | -5/Factory Wizard-Scout | -4/Factory Wizard-Scout | -4/Waste Hacker-Scout | -4/Factory Wizard-Scout | -4/Upper Caves Wizard-Scout | -4/Upper Caves Wizard-Scout | -4/Zhirov Wizard-Sprinter | -3/Proximity Caves Wizard-Sprinter | -3/Research Wizard-Sprinter | -3/Armory Wizard-Sprinter | -3/Lab Wizard-Sprinter | -2/Research Wizard-Sprinter | -2/Testing Wizard-Sprinter | -1/Access Resources | -11 -10 -10 -9 -9 -9 -8 -8 -8 -7 -7 -7 -7 -6 -6 -6 -6 -5 -4 -4 -4 -4 -4 -4 -3 -3 -3 -3 -2 -2 -1 ----------- Run | Scr Mat Min Mat Min Exi Min Mat Sto Fac Low Low Dat Pro Fac Low Low Fac Fac Was Fac Upp Upp Zhi Pro Res Arm Lab Res Tes Acc Matter Collected 4691 | 163 334 50 461 119 . 296 871 462 120 20 . . . 150 . . 248 17 228 149 63 116 . 90 230 180 73 185 66 . Remotely . | . . . . . . . . . . . . . . . . . . . . . . . . . . . . . . . Salvage Created 8049 | . 902 103 1693 82 . 516 1261 922 39 99 . 30 . 396 . . 183 52 . 186 . . . . 646 263 73 511 92 . Parts 403 | . 54 7 93 . . 24 63 53 3 7 . 2 . 11 . . 9 2 . 8 . . . . 24 14 6 22 1 . Haulers Intercepted 21 | . 2 . 3 . . . 4 2 . . . . . 3 . . 1 . . 1 . . . . 3 . . 1 1 . Recyclers Shooed 2 | . 2 . . . . . . . . . . . . . . . . . . . . . . . . . . . . . Parts Field Recycled . | . . . . . . . . . . . . . . . . . . . . . . . . . . . . . . . Retrieved Matter . | . . . . . . . . . . . . . . . . . . . . . . . . . . . . . . . Parts Self-Destructed 7 | . . . . . . . . . . 7 . . . . . . . . . . . . . . . . . . . . Prevented . | . . . . . . . . . . . . . . . . . . . . . . . . . . . . . . . Kills | -11 -10 -10 -9 -9 -9 -8 -8 -8 -7 -7 -7 -7 -6 -6 -6 -6 -5 -4 -4 -4 -4 -4 -4 -3 -3 -3 -3 -2 -2 -1 ------- Run | Scr Mat Min Mat Min Exi Min Mat Sto Fac Low Low Dat Pro Fac Low Low Fac Fac Was Fac Upp Upp Zhi Pro Res Arm Lab Res Tes Acc Combat Hostiles Destroyed 138 | . 19 5 37 6 . 13 23 17 . 4 . . . 3 . . . . . . . . . . 4 3 1 3 . . Melee 18 | . . . . . . . . . . 4 . . . 3 . . . . . . . . . . 4 3 1 3 . . Guns 108 | . 18 4 37 6 . 10 16 17 . . . . . . . . . . . . . . . . . . . . . . Cannons 3 | . . . . . . . 3 . . . . . . . . . . . . . . . . . . . . . . . AOE 6 | . 1 . . . . 3 2 . . . . . . . . . . . . . . . . . . . . . . . Classes Destroyed 16 | . 5 . 4 1 . . 2 . 1 . . . . . . . . . . . . . . . . 1 . 2 . . Worker 3 | . 1 . . . . 1 1 . . . . . . . . . . . . . . . . . . . . . . . Builder 3 | . 1 . . . . 1 . 1 . . . . . . . . . . . . . . . . . . . . . . Tunneler 1 | . . . . . . . 1 . . . . . . . . . . . . . . . . . . . . . . . Hauler 21 | . 2 . 3 . . . 4 2 . . . . . 3 . . 1 . . 1 . . . . 3 . . 1 1 . Recycler 1 | . . . . . . . . . . . . . . . . . . . . . . . . . . . . 1 . . Operator 11 | . . . 1 . . . 3 1 . . . . . . . . 2 1 . . . . . . 2 . . 1 . . Watcher 12 | . . . . . . . . . 1 . . . . . . . 1 1 . 2 . . . . 4 2 . 1 . . Swarmer 31 | . 3 3 4 . . 7 . 3 . 4 . . . 3 . . . . . . . . . . 4 . . . . . Saboteur 1 | . . . . . . . . . . . . . . . . . . . . . . . . . . 1 . . . . Grunt 66 | . 16 2 22 . . 5 12 9 . . . . . . . . . . . . . . . . . . . . . . Brawler 2 | . . . 1 . . 1 . . . . . . . . . . . . . . . . . . . . . . . . Duelist 3 | . . . 2 . . . 1 . . . . . . . . . . . . . . . . . . . . . . . Sentry 22 | . . . 8 . . . 7 5 . . . . . . . . . . . . . . . . . 2 . . . . Hunter 3 | . . . . . . . 3 . . . . . . . . . . . . . . . . . . . . . . . Tracker 2 | . . . . . . . . . . . . . . . . . . . . . . . . . . . . 2 . . Combat Programmer 1 | . . . . . . . . . . . . . . . . . . . . . . . . . . . . 1 . . Assembled 6 | . . . . 6 . . . . . . . . . . . . . . . . . . . . . . . . . . Best Kill Streak 9 | . 3 3 4 6 . 5 9 8 1 4 . 1 . 4 . . 1 1 . 2 . . . . 2 1 1 2 1 . Combat Bots Only 8 | . 3 3 4 6 . 4 8 7 . 4 . . . 3 . . . . . . . . . . 2 1 1 2 . . Max Kills in Single Turn 4 | . 2 1 1 1 . 4 1 2 1 1 . 1 . 1 . . 1 1 . 1 . . . . 1 1 1 1 1 . Gunslinging 1 | . . . . . . . . 1 . . . . . . . . . . . . . . . . . . . . . . Exploded 2 | . 1 . . . . 2 1 . . . . . . . . . . . . . . . . . . . . . . . Melee 1 | . . . . . . . . . . 1 . . . 1 . . . . . . . . . . 1 1 1 1 . . Uniques/NPCs Destroyed 2 | . . . . . . . . . . . . 1 . . . . . . . . . . . . . . 1 . . . Data Miner (-7/Data Miner) A5 (-3/Lab) Combat | -11 -10 -10 -9 -9 -9 -8 -8 -8 -7 -7 -7 -7 -6 -6 -6 -6 -5 -4 -4 -4 -4 -4 -4 -3 -3 -3 -3 -2 -2 -1 -------- Run | Scr Mat Min Mat Min Exi Min Mat Sto Fac Low Low Dat Pro Fac Low Low Fac Fac Was Fac Upp Upp Zhi Pro Res Arm Lab Res Tes Acc Damage Taken 12475 | . 1122 212 1424 449 . 939 2586 731 171 202 12 145 168 139 64 . 40 269 . 459 . 29 . . 444 93 213 2277 233 54 Core 2790 | . 169 38 257 . . 70 248 89 78 48 . 98 64 67 28 . 20 87 . 119 . . . . 67 24 . 1132 60 27 Absorbed by Shields . | . . . . . . . . . . . . . . . . . . . . . . . . . . . . . . . Core Remaining (%) 64 | 100 . 17 . . . 18 . 38 . . . . 58 . . 88 98 . . . . . . 82 . . 100 . 17 98 Volleys Fired 381 | . 69 13 112 20 . 39 80 48 . . . . . . . . . . . . . . . . . . . . . . Largest 2 | . 2 2 2 2 . 2 2 2 . . . . . . . . . . . . . . . . . . . . . . Hottest 130 | . 130 130 88 79 . 56 73 56 . . . . . . . . . . . . . . . . . . . . . . Shots Fired 721 | . 135 24 219 29 . 77 144 93 . . . . . . . . . . . . . . . . . . . . . . Gun 702 | . 135 24 219 29 . 72 130 93 . . . . . . . . . . . . . . . . . . . . . . Cannon 8 | . . . . . . . 8 . . . . . . . . . . . . . . . . . . . . . . . Launcher 11 | . . . . . . 5 6 . . . . . . . . . . . . . . . . . . . . . . . Special . | . . . . . . . . . . . . . . . . . . . . . . . . . . . . . . . Kinetic 478 | . 54 . 111 23 . 72 125 93 . . . . . . . . . . . . . . . . . . . . . . Thermal 160 | . 43 24 87 6 . . . . . . . . . . . . . . . . . . . . . . . . . . Explosive 2 | . . . . . . . 2 . . . . . . . . . . . . . . . . . . . . . . . Electromagnetic 81 | . 38 . 21 . . 5 17 . . . . . . . . . . . . . . . . . . . . . . . Robot Hit Streak 49 | . 8 9 49 15 . 20 15 27 . . . . . . . . . . . . . . . . . . . . . . Robot Miss Streak 4 | . 3 3 3 1 . 4 4 2 . . . . . . . . . . . . . . . . . . . . . . Penetration Max 1 | . . . . . . . . 1 . . . . . . . . . . . . . . . . . . . . . . Secondary Targets 16 | . 4 . 3 . . 2 2 5 . . . . . . . . . . . . . . . . . . . . . . Max Gunslinging Chain 1 | . 1 . 1 . . 1 1 1 . . . . . . . . . . . . . . . . . . . . . . Shots Hit Robots 696 | . 88 15 171 24 . 54 134 75 5 5 . 1 . 20 . . 5 3 . 7 . . . . 37 20 10 21 1 . Core Hits 288 | . 37 7 64 12 . 24 60 30 1 4 . 1 . 7 . . 3 1 . 4 . . . . 13 7 4 8 1 . Critical Hits 14 | . . . 1 . . 1 2 5 . 1 . . . 1 . . . . . . . . . . 1 2 . . . . Critical Kills 6 | . . . . . . 1 1 2 . 1 . . . 1 . . . . . . . . . . . . . . . . Critical Parts Destroyed 8 | . . . 1 . . . 1 3 . . . . . . . . . . . . . . . . 1 2 . . . . Melee Attacks 764 | . . 1 3 . . 1 45 13 24 7 . 24 . 74 . . 74 50 . 75 3 . . . 197 94 17 50 8 4 Impact 1 | . . 1 . . . . . . . . . . . . . . . . . . . . . . . . . . . . Slashing 763 | . . . 3 . . 1 45 13 24 7 . 24 . 74 . . 74 50 . 75 3 . . . 197 94 17 50 8 4 Piercing . | . . . . . . . . . . . . . . . . . . . . . . . . . . . . . . . Sneak Attacks 27 | . . . 1 . . . 3 . 1 . . 1 . 3 . . 4 1 . 1 . . . . 8 1 . 2 1 . Combat Hostiles . | . . . . . . . . . . . . . . . . . . . . . . . . . . . . . . . Follow-up Attacks 17 | . . . . . . . . . . . . . . . . . 1 . . 2 . . . . 7 4 2 1 . . Damage Inflicted 19650 | . 1260 251 2665 368 . 1014 3229 1632 234 202 . 120 . 972 . . 576 252 . 424 . . . . 2613 1359 811 1505 163 . Guns 8678 | . 1190 219 2512 368 . 773 1984 1632 . . . . . . . . . . . . . . . . . . . . . . Cannons 128 | . . . . . . . 128 . . . . . . . . . . . . . . . . . . . . . . . Explosions 753 | . 70 . . . . 241 442 . . . . . . . . . . . . . . . . . . . . . . . Melee 10083 | . . 24 153 . . . 675 . 234 202 . 120 . 972 . . 576 252 . 424 . . . . 2613 1359 811 1505 163 . Ramming 8 | . . 8 . . . . . . . . . . . . . . . . . . . . . . . . . . . . Kinetic 6160 | . 401 . 1111 311 . 773 1932 1632 . . . . . . . . . . . . . . . . . . . . . . Thermal 2042 | . 487 219 1126 57 . 109 44 . . . . . . . . . . . . . . . . . . . . . . . Explosive 213 | . . . . . . . 213 . . . . . . . . . . . . . . . . . . . . . . . Electromagnetic 1144 | . 372 . 275 . . 132 365 . . . . . . . . . . . . . . . . . . . . . . . Impact 24 | . . 24 . . . . . . . . . . . . . . . . . . . . . . . . . . . . Slashing 10059 | . . . 153 . . . 675 . 234 202 . 120 . 972 . . 576 252 . 424 . . . . 2613 1359 811 1505 163 . Piercing . | . . . . . . . . . . . . . . . . . . . . . . . . . . . . . . . Highest Corruption 6 | . 1 1 . 2 2 2 . . . . . . 1 . . . . . . . . . . . 2 3 5 6 6 . Average Corruption 2 | . 1 1 . 2 2 2 . . . . . . 1 . . . . . . . . . . . 1 2 4 5 6 . Corruption Purged . | . . . . . . . . . . . . . . . . . . . . . . . . . . . . . . . Effects 46 | . 3 2 . 3 4 13 . . . . . . 1 . . . . . . . . . . . . 10 1 5 4 . Message Errors 15 | . 1 1 . 2 2 3 . . . . . . . . . . . . . . . . . . . 2 1 1 2 . Matter Fused 3 | . . . . . . . . . . . . . . . . . . . . . . . . . . 1 . 1 1 . Heat Flow Errors 7 | . . . . 1 1 3 . . . . . . . . . . . . . . . . . . . 1 . 1 . . Energy Discharges 11 | . 1 . . . 1 4 . . . . . . . . . . . . . . . . . . . 4 . 1 . . Data Loss (minor) 5 | . 1 . . . . 2 . . . . . . 1 . . . . . . . . . . . . 1 . . . . Data Loss (major) 1 | . . . . . . . . . . . . . . . . . . . . . . . . . . . . . 1 . Targeting Errors 2 | . . . . . . . . . . . . . . . . . . . . . . . . . . 1 . 1 . . Weapon Failures 2 | . . 1 . . . 1 . . . . . . . . . . . . . . . . . . . . . . . . Overload Shots . | . . . . . . . . . . . . . . . . . . . . . . . . . . . . . . . Overflow Damage 1573 | . . 12 78 . . 19 317 . 3 5 . . . 22 . . 214 123 . 32 . . . . 409 176 17 146 . . Projectiles . | . . . . . . . . . . . . . . . . . . . . . . . . . . . . . . . Explosions 26 | . . . . . . 19 7 . . . . . . . . . . . . . . . . . . . . . . . Melee 1547 | . . 12 78 . . . 310 . 3 5 . . . 22 . . 214 123 . 32 . . . . 409 176 17 146 . . Knockbacks 6 | . . . . . . . 6 . . . . . . . . . . . . . . . . . . . . . . . Impact . | . . . . . . . . . . . . . . . . . . . . . . . . . . . . . . . Kinetic 6 | . . . . . . . 6 . . . . . . . . . . . . . . . . . . . . . . . Secondary . | . . . . . . . . . . . . . . . . . . . . . . . . . . . . . . . Self-Inflicted Damage 42 | . . . . . . 19 23 . . . . . . . . . . . . . . . . . . . . . . . Shots 4 | . . . . . . 3 1 . . . . . . . . . . . . . . . . . . . . . . . Rammed 1 | . . 1 . . . . . . . . . . . . . . . . . . . . . . . . . . . . Targets Rammed 1 | . . 1 . . . . . . . . . . . . . . . . . . . . . . . . . . . . Kicked . | . . . . . . . . . . . . . . . . . . . . . . . . . . . . . . . Crushed . | . . . . . . . . . . . . . . . . . . . . . . . . . . . . . . . Highest Temperature 394 | . 394 384 150 229 268 225 109 18 . . . . . . . . 4 3 . 13 . . . . 5 247 . 76 . . Average Temperature 64 | . 95 143 30 66 135 48 19 5 . . . . . . . . 4 2 . 6 . . . . 5 135 . 40 . . Received Heat Transfer 3204 | . 567 57 528 . . 315 936 315 . . 6 18 27 27 18 . 9 84 . 90 . . . . 18 . . 171 9 9 Effects 5 | . 5 . . . . . . . . . . . . . . . . . . . . . . . . . . . . . Shutdowns 1 | . 1 . . . . . . . . . . . . . . . . . . . . . . . . . . . . . Energy Bleed 1 | . 1 . . . . . . . . . . . . . . . . . . . . . . . . . . . . . Interference 1 | . 1 . . . . . . . . . . . . . . . . . . . . . . . . . . . . . Matter Decay 1 | . 1 . . . . . . . . . . . . . . . . . . . . . . . . . . . . . Damage (minor) 1 | . 1 . . . . . . . . . . . . . . . . . . . . . . . . . . . . . Siege Activations . | . . . . . . . . . . . . . . . . . . . . . . . . . . . . . . . Robots Corrupted 1 | . . . . . . . 1 . . . . . . . . . . . . . . . . . . . . . . . Combat Hostiles 1 | . . . . . . . 1 . . . . . . . . . . . . . . . . . . . . . . . Parts Fried 2 | . . 1 . . . . 1 . . . . . . . . . . . . . . . . . . . . . . . Impact Corruptions 1 | . . 1 . . . . . . . . . . . . . . . . . . . . . . . . . . . . Robots Melted . | . . . . . . . . . . . . . . . . . . . . . . . . . . . . . . . Combat Hostiles . | . . . . . . . . . . . . . . . . . . . . . . . . . . . . . . . Parts Melted 7 | . 1 2 2 . . 2 . . . . . . . . . . . . . . . . . . . . . . . . Heat Transferred 4841 | . 1173 532 2738 148 . 200 50 . . . . . . . . . . . . . . . . . . . . . . . Parts Sabotaged . | . . . . . . . . . . . . . . . . . . . . . . . . . . . . . . . Parts Stolen 1 | . . . . . . . . . . . . . . . . . . . . . . . . 1 . . . . . . Parts Stripped . | . . . . . . . . . . . . . . . . . . . . . . . . . . . . . . . Power Chain Reactions 5 | . 2 . . . . 2 1 . . . . . . . . . . . . . . . . . . . . . . . Missiles Intercepted . | . . . . . . . . . . . . . . . . . . . . . . . . . . . . . . . Alert | -11 -10 -10 -9 -9 -9 -8 -8 -8 -7 -7 -7 -7 -6 -6 -6 -6 -5 -4 -4 -4 -4 -4 -4 -3 -3 -3 -3 -2 -2 -1 ------- Run | Scr Mat Min Mat Min Exi Min Mat Sto Fac Low Low Dat Pro Fac Low Low Fac Fac Was Fac Upp Upp Zhi Pro Res Arm Lab Res Tes Acc Peak Influence 668 | . 224 146 668 241 . 146 346 463 238 . . . . 133 . . 183 293 35 186 . . . . 381 568 . 101 114 66 Average Influence 147 | . 98 127 255 98 . 51 164 263 170 . . . . 62 . . 74 187 35 40 . . . . 154 315 . 29 61 42 Maximum Alert Level 2 | . 1 . 2 1 . . 1 2 1 . . . . . . . . 1 . . . . . . 1 2 . . . . Low Security (%) 71 | . 89 100 57 59 . 100 54 37 76 . . . . 100 . . 100 55 100 100 . . . . 69 23 . 100 100 100 Level 1 21 | . 10 . 15 40 . . 45 35 23 . . . . . . . . 44 . . . . . . 30 55 . . . . Level 2 6 | . . . 27 . . . . 27 . . . . . . . . . . . . . . . . . 20 . . . . Level 3 . | . . . . . . . . . . . . . . . . . . . . . . . . . . . . . . . Level 4 . | . . . . . . . . . . . . . . . . . . . . . . . . . . . . . . . Level 5 . | . . . . . . . . . . . . . . . . . . . . . . . . . . . . . . . High Security . | . . . . . . . . . . . . . . . . . . . . . . . . . . . . . . . Max Security . | . . . . . . . . . . . . . . . . . . . . . . . . . . . . . . . Squads Dispatched 39 | . 5 . 7 . . . 3 2 . . . . . 2 . . . 1 . 5 . . . . 6 1 . 6 . 1 Investigation 20 | . 5 . 6 . . . . 1 . . . . . . . . . 1 . 2 . . . . 4 . . 1 . . Extermination 8 | . . . . . . . . . . . . . . 1 . . . . . 3 . . . . 2 1 . 1 . . Reinforcement 8 | . . . 1 . . . 3 1 . . . . . 1 . . . . . . . . . . . . . 1 . 1 Assault . | . . . . . . . . . . . . . . . . . . . . . . . . . . . . . . . Garrison . | . . . . . . . . . . . . . . . . . . . . . . . . . . . . . . . Intercept 3 | . . . . . . . . . . . . . . . . . . . . . . . . . . . . 3 . . Construction Impeded 1 | . . . . . . . . 1 . . . . . . . . . . . . . . . . . . . . . . Haulers Reinforced 2 | . . . . . . . . . . . . . . 1 . . . . . . . . . . . . . 1 . . Stealth | -11 -10 -10 -9 -9 -9 -8 -8 -8 -7 -7 -7 -7 -6 -6 -6 -6 -5 -4 -4 -4 -4 -4 -4 -3 -3 -3 -3 -2 -2 -1 --------- Run | Scr Mat Min Mat Min Exi Min Mat Sto Fac Low Low Dat Pro Fac Low Low Fac Fac Was Fac Upp Upp Zhi Pro Res Arm Lab Res Tes Acc Distress Signals 21 | . . . 4 . . . 2 4 . . . . . 1 . . 1 2 . 2 . . . . 1 2 . . . 2 Communications Jammed . | . . . . . . . . . . . . . . . . . . . . . . . . . . . . . . . Distress Signals . | . . . . . . . . . . . . . . . . . . . . . . . . . . . . . . . Times Spotted 374 | . 30 5 58 7 . 13 57 22 6 7 1 4 7 15 2 . 8 15 . 31 . 3 . 2 27 25 1 15 7 6 Peak Tracking Total 12 | . 4 2 6 7 . 4 8 9 4 5 1 4 6 5 2 . 5 8 . 8 1 12 . 2 8 10 1 7 6 5 Tactical Retreats 51 | . 2 1 1 1 . . 10 1 1 . . . 1 7 . . 2 6 . 6 . . . . 2 6 . 3 . 1 Traps | -11 -10 -10 -9 -9 -9 -8 -8 -8 -7 -7 -7 -7 -6 -6 -6 -6 -5 -4 -4 -4 -4 -4 -4 -3 -3 -3 -3 -2 -2 -1 ------- Run | Scr Mat Min Mat Min Exi Min Mat Sto Fac Low Low Dat Pro Fac Low Low Fac Fac Was Fac Upp Upp Zhi Pro Res Arm Lab Res Tes Acc Traps Triggered 15 | . 4 . 2 . . . . . . . . . . . . . 1 1 . 3 . . . . 1 3 . . . . Indirectly . | . . . . . . . . . . . . . . . . . . . . . . . . . . . . . . . Trap Hack Attempts . | . . . . . . . . . . . . . . . . . . . . . . . . . . . . . . . Triggered . | . . . . . . . . . . . . . . . . . . . . . . . . . . . . . . . Disarmed . | . . . . . . . . . . . . . . . . . . . . . . . . . . . . . . . Reprogrammed 1 | . . . . . . . . . . . . . . . . . . . . . . . . . . 1 . . . . Reused . | . . . . . . . . . . . . . . . . . . . . . . . . . . . . . . . Traps Extracted . | . . . . . . . . . . . . . . . . . . . . . . . . . . . . . . . Installed . | . . . . . . . . . . . . . . . . . . . . . . . . . . . . . . . Triggered 1 | . . . . . . . . . . . . . . . . . . . . . 1 . . . . . . . . . Machines | -11 -10 -10 -9 -9 -9 -8 -8 -8 -7 -7 -7 -7 -6 -6 -6 -6 -5 -4 -4 -4 -4 -4 -4 -3 -3 -3 -3 -2 -2 -1 ---------- Run | Scr Mat Min Mat Min Exi Min Mat Sto Fac Low Low Dat Pro Fac Low Low Fac Fac Was Fac Upp Upp Zhi Pro Res Arm Lab Res Tes Acc Machines Disabled 17 | . 1 . 4 . . . 3 2 . . . 1 . . . . . . . . . . . . . 3 1 . 2 . Max in Single Turn 1 | . 1 . 1 . . . 1 1 . . . 1 . . . . . . . . . . . . . 1 1 . 1 . Garrison Access 10 | . . . . . . . . 1 . . . . . 2 . . 2 1 . 1 . . . . 2 . . . 1 . Machines Sabotaged . | . . . . . . . . . . . . . . . . . . . . . . . . . . . . . . . Garrisons Compromised . | . . . . . . . . . . . . . . . . . . . . . . . . . . . . . . . Overloaded Fab Kills . | . . . . . . . . . . . . . . . . . . . . . . . . . . . . . . . Fab Network Shutdowns 1 | . . . . . . . . . . . . . . . . . . . . . . . . . . 1 . . . . Hacking | -11 -10 -10 -9 -9 -9 -8 -8 -8 -7 -7 -7 -7 -6 -6 -6 -6 -5 -4 -4 -4 -4 -4 -4 -3 -3 -3 -3 -2 -2 -1 --------- Run | Scr Mat Min Mat Min Exi Min Mat Sto Fac Low Low Dat Pro Fac Low Low Fac Fac Was Fac Upp Upp Zhi Pro Res Arm Lab Res Tes Acc Machines Accessed 154 | . 7 . 12 1 2 . 5 12 5 . . 4 . 14 2 . 11 8 . 14 . 1 8 . 20 11 2 7 5 3 Terminals 93 | . 6 . 9 1 . . 5 11 4 . . . . 9 . . 3 6 . 9 . . . . 12 7 . 5 3 3 Fabricators 18 | . . . . . . . . . . . . . . 3 . . 3 1 . 4 . . . . 3 3 . 1 . . Repair Stations 3 | . . . . . . . . . . . . . . . . . 1 . . . . . . . 1 1 . . . . Recycling Units 5 | . 1 . 2 . . . . . . . . . . . . . 1 . . . . . . . 1 . . . . . Scanalyzers 6 | . . . 1 . . . . . 1 . . . . . . . 1 . . . . . . . 1 . . 1 1 . Garrison Access 10 | . . . . . . . . 1 . . . . . 2 . . 2 1 . 1 . . . . 2 . . . 1 . Total Hacks 627 | . 24 . 31 2 3 . 10 31 19 . . 24 . 53 5 . 35 26 . 65 . 1 47 . 89 75 19 47 15 6 Successful 502 | . 16 . 17 1 3 . 3 20 14 . . 24 . 50 5 . 30 18 . 48 . 1 47 . 71 65 19 39 8 3 Failed 121 | . 7 . 13 1 . . 7 11 5 . . . . 3 . . 5 7 . 17 . . . . 17 10 . 8 7 3 Catastrophic 7 | . . . . . . . . . . . . . . 1 . . . . . 1 . . . . 2 . . 1 2 . Database Lockouts 4 | . 1 . 1 . . . . . . . . . . . . . . 1 . . . . . . 1 . . . . . Manual 290 | . 18 . 14 2 1 . 9 19 4 . . . . 28 . . 17 18 . 41 . . . . 41 37 1 30 5 5 Terminals 379 | . 23 . 26 2 . . 10 29 13 . . . . 40 . . 12 22 . 41 . . . . 52 55 . 38 10 6 Fabricators 94 | . . . . . . . . . . . . . . 11 . . 15 3 . 22 . . . . 18 18 . 7 . . Repair Stations 6 | . . . . . . . . . . . . . . . . . 2 . . . . . . . 2 2 . . . . Recycling Units 8 | . 1 . 3 . . . . . . . . . . . . . 2 . . . . . . . 2 . . . . . Scanalyzers 26 | . . . 2 . . . . . 6 . . . . . . . 2 . . . . . . . 12 . . 2 2 . Garrison Access 15 | . . . . . . . . 2 . . . . . 2 . . 2 1 . 2 . . . . 3 . . . 3 . Terminal Hacks 285 | . 10 . 10 . 3 . 2 12 6 . . 24 . 26 5 . 4 10 . 20 . 1 47 . 28 34 19 19 4 1 Record 73 | . . . . . 2 . . . . . . 11 . 1 4 . . . . . . . 35 . . 1 19 . . . Part Schematic 41 | . 1 . . . . . . 1 . . . 6 . 7 . . 1 1 . 6 . . 4 . 4 6 . 4 . . Robot Schematic 4 | . . . . . . . . . . . . 4 . . . . . . . . . . . . . . . . . . Robot Analysis 6 | . 1 . . . . . . . . . . . . . . . . 1 . . . . 4 . . . . . . . Prototype ID Bank 17 | . 2 . 2 . . . . . 1 . . 3 . 3 . . . . . . . . 4 . 1 1 . . . . Open Door 7 | . . . . . . . . 4 . . . . . . 1 . . . . . . 1 . . . . . . . 1 Level Access Points 1 | . . . . . . . . . . . . . . . . . . . . . . . . . . . . . 1 . Branch Access Points 7 | . . . 1 . . . . . . . . . . 1 . . 1 . . 1 . . . . 1 1 . 1 . . Emergency Access Points 1 | . . . . . . . . . . . . . . . . . . . . . . . . . . 1 . . . . Machine Index 2 | . . . . . . . . . . . . . . . . . . . . . . . . . . 1 . 1 . . Terminal Index 10 | . 1 . 1 . . . 1 1 1 . . . . . . . 1 1 . 1 . . . . 1 1 . . . . Fabricator Index 6 | . . . . . . . . . 1 . . . . 1 . . . 1 . 1 . . . . 1 1 . . . . Recycling Unit Index 1 | . 1 . . . . . . . . . . . . . . . . . . . . . . . . . . . . . Scanalyzer Index 1 | . . . . . . . . . . . . . . . . . . . . . . . . . 1 . . . . . Garrison Index 3 | . . . . . . . . . . . . . . 1 . . . . . . . . . . 1 1 . . . . Alert Level 4 | . . . . . . . . . . . . . . . . . . . . . . . . . 1 2 . 1 . . Unreport Threat 7 | . 1 . . . . . . . 1 . . . . . . . . . . . . . . . . 3 . 1 1 . Locate Traps 21 | . 1 . 1 . . . . 1 . . . . . 3 . . . 2 . 2 . . . . 4 4 . 2 1 . Reprogram Traps 1 | . . . . . . . . . . . . . . . . . . . . . . . . . . 1 . . . . Transport Status 1 | . . . . . . . . . . . . . . 1 . . . . . . . . . . . . . . . . Recall Investigation 4 | . . . . . . . . . . . . . . . . . . . . 1 . . . . 2 . . 1 . . Recall Extermination 6 | . . . . . . . . . . . . . . 1 . . . . . 3 . . . . 1 1 . . . . Recall Reinforcements 1 | . . . . . . . . . . . . . . . . . . . . . . . . . . . . 1 . . Hauler Manifests 4 | . . . 1 . . . . . . . . . . . . . . . . 1 . . . . . 1 . 1 . . Registered Components 7 | . . . 1 . . . . . . . . . . 1 . . . 1 . 1 . . . . 1 1 . 1 . . Registered Prototypes 5 | . . . . . . . . . . . . . . . . . . 1 . . . . . . 1 1 . 2 . . Zone Layout 43 | . 2 . 3 . . . 1 5 2 . . . . 6 . . 1 2 . 3 . . . . 8 6 . 3 1 . EX-Prototype ID Bank 1 | . . . . . 1 . . . . . . . . . . . . . . . . . . . . . . . . . Fabricator Hacks 61 | . . . . . . . . . . . . . . 8 . . 11 1 . 14 . . . . 10 13 . 4 . . Network Status 1 | . . . . . . . . . . . . . . . . . . . . 1 . . . . . . . . . . Load Schematic 25 | . . . . . . . . . . . . . . 3 . . 5 . . 5 . . . . 5 5 . 2 . . Build 35 | . . . . . . . . . . . . . . 5 . . 6 1 . 8 . . . . 5 8 . 2 . . Repair Station Hacks 6 | . . . . . . . . . . . . . . . . . 2 . . . . . . . 2 2 . . . . Scan Component 3 | . . . . . . . . . . . . . . . . . 1 . . . . . . . 1 1 . . . . Repair 3 | . . . . . . . . . . . . . . . . . 1 . . . . . . . 1 1 . . . . Recycling Unit Hacks . | . . . . . . . . . . . . . . . . . . . . . . . . . . . . . . . Scanalyzer 26 | . . . 2 . . . . . 6 . . . . . . . 2 . . . . . . . 12 . . 2 2 . Insert Component 16 | . . . 1 . . . . . 4 . . . . . . . 1 . . . . . . . 6 . . 2 2 . Analyze 10 | . . . 1 . . . . . 2 . . . . . . . 1 . . . . . . . 6 . . . . . Garrison Access Hacks 10 | . . . . . . . . 1 . . . . . 2 . . 2 1 . 1 . . . . 2 . . . 1 . Seal Access 10 | . . . . . . . . 1 . . . . . 2 . . 2 1 . 1 . . . . 2 . . . 1 . Unauthorized Hacks 249 | . 15 . 10 3 . . 7 20 4 . . . . 28 . . 20 12 . 26 . . . . 35 32 . 28 2 7 Terminals 85 | . 5 . 3 1 . . 1 7 2 . . . . 13 . . 3 5 . 8 . . . . 11 12 . 11 1 2 Track 25 | . 1 . . 1 . . . 1 1 . . . . 6 . . . 1 . 3 . . . . 3 4 . 4 . . Assimilate 13 | . 1 . . . . . . . . . . . . 1 . . 2 1 . . . . . . 2 3 . 2 1 . Botnet 34 | . 2 . 2 . . . . 5 1 . . . . 4 . . 1 2 . 4 . . . . 4 3 . 4 . 2 Disrupt 2 | . . . . . . . . . . . . . . 1 . . . . . . . . . . . 1 . . . . Operators 11 | . 1 . 1 . . . 1 1 . . . . . 1 . . . 1 . 1 . . . . 2 1 . 1 . . Fabricators 22 | . . . . . . . . . . . . . . 1 . . 4 1 . 5 . . . . 4 4 . 3 . . Report 5 | . . . . . . . . . . . . . . . . . 1 . . 1 . . . . 1 1 . 1 . . Siphon 16 | . . . . . . . . . . . . . . 1 . . 3 1 . 4 . . . . 3 3 . 1 . . Haulers 1 | . . . . . . . . . . . . . . . . . . . . . . . . . . . . 1 . . Repair Stations . | . . . . . . . . . . . . . . . . . . . . . . . . . . . . . . . Recycling Units 7 | . 1 . 2 . . . . . . . . . . . . . 2 . . . . . . . 2 . . . . . Monitor 2 | . . . . . . . . . . . . . . . . . 1 . . . . . . . 1 . . . . . Recyclers 2 | . . . . . . . . . . . . . . . . . 1 . . . . . . . 1 . . . . . Tunnel 3 | . 1 . 2 . . . . . . . . . . . . . . . . . . . . . . . . . . . Scanalyzers . | . . . . . . . . . . . . . . . . . . . . . . . . . . . . . . . Garrison Access . | . . . . . . . . . . . . . . . . . . . . . . . . . . . . . . . Data Cores Recovered 3 | . . . . . . . . . . . . . . . . . 2 . . . . . . . . . . 1 . . Used 1 | . . . . . . . . . . . . . . . . . . . . . . . . . . . . 1 . . Hacking Detections 104 | . 5 . 10 1 . . 5 9 5 . . . . 12 . . 8 4 . 10 . . . . 16 8 . 6 3 2 Full Trace Events 6 | . 1 . 1 . . . . 1 . . . . . . . . . . . 1 . . . . 1 . . 1 . . Feedback Events 1 | . 1 . . . . . . . . . . . . . . . . . . . . . . . . . . . . . Corruption 1 | . 1 . . . . . . . . . . . . . . . . . . . . . . . . . . . . . Feedback Blocked . | . . . . . . . . . . . . . . . . . . . . . . . . . . . . . . . Robot Schematics Acquired 4 | . . . . . . . . . . . . 4 . . . . . . . . . . . . . . . . . . Robots Built . | . . . . . . . . . . . . . . . . . . . . . . . . . . . . . . . Matter . | . . . . . . . . . . . . . . . . . . . . . . . . . . . . . . . Time . | . . . . . . . . . . . . . . . . . . . . . . . . . . . . . . . Total Robot Build Rating . | . . . . . . . . . . . . . . . . . . . . . . . . . . . . . . . Part Schematics Acquired 48 | . 1 . 1 . . . . . 2 . . 6 . 7 . . 2 1 . 6 . . 4 . 9 5 . 4 . . Parts Built 34 | . . . . . . . . . . . . . . 7 . . 5 1 . 7 . . . . 4 8 . 2 . . Matter 6569 | . . . . . . . . . . . . . . 804 . . 868 208 . 1354 . . . . 1027 1944 . 364 . . Time 2579 | . . . . . . . . . . . . . . 213 . . 605 69 . 689 . . . . 242 634 . 127 . . Total Part Build Rating 190 | . . . . . . . . . . . . . . 26 . . 22 9 . 39 . . . . 27 58 . 9 . . Parts Repaired 3 | . . . . . . . . . . . . . . . . . 1 . . . . . . . 1 1 . . . . Time 89 | . . . . . . . . . . . . . . . . . 35 . . . . . . . 14 40 . . . . Parts Recycled . | . . . . . . . . . . . . . . . . . . . . . . . . . . . . . . . Recycled Matter . | . . . . . . . . . . . . . . . . . . . . . . . . . . . . . . . Retrieved Matter . | . . . . . . . . . . . . . . . . . . . . . . . . . . . . . . . Retrieved Components . | . . . . . . . . . . . . . . . . . . . . . . . . . . . . . . . Parts Scanalyzed 9 | . . . 1 . . . . . 2 . . . . . . . 1 . . . . . . . 5 . . . . . Part Schematics Acquired 9 | . . . 1 . . . . . 2 . . . . . . . 1 . . . . . . . 5 . . . . . Parts Damaged 1 | . . . . . . . . . . . . . . . . . 1 . . . . . . . . . . . . . Bothacking | -11 -10 -10 -9 -9 -9 -8 -8 -8 -7 -7 -7 -7 -6 -6 -6 -6 -5 -4 -4 -4 -4 -4 -4 -3 -3 -3 -3 -2 -2 -1 ------------ Run | Scr Mat Min Mat Min Exi Min Mat Sto Fac Low Low Dat Pro Fac Low Low Fac Fac Was Fac Upp Upp Zhi Pro Res Arm Lab Res Tes Acc Used RIF Installer . | . . . . . . . . . . . . . . . . . . . . . . . . . . . . . . . Robots Hacked . | . . . . . . . . . . . . . . . . . . . . . . . . . . . . . . . Non-combat . | . . . . . . . . . . . . . . . . . . . . . . . . . . . . . . . Combat . | . . . . . . . . . . . . . . . . . . . . . . . . . . . . . . . Robot Hacks Applied . | . . . . . . . . . . . . . . . . . . . . . . . . . . . . . . . Relay Couplers Released 4 | . . . . . . . . . . . . . . . . . . . . 2 . . . . 2 . . . . . Machine Destruction 4 | . . . . . . . . . . . . . . . . . . . . 2 . . . . 2 . . . . . Robots Rewired . | . . . . . . . . . . . . . . . . . . . . . . . . . . . . . . . Allies Hacked . | . . . . . . . . . . . . . . . . . . . . . . . . . . . . . . . Hacks Repelled . | . . . . . . . . . . . . . . . . . . . . . . . . . . . . . . . Allies | -11 -10 -10 -9 -9 -9 -8 -8 -8 -7 -7 -7 -7 -6 -6 -6 -6 -5 -4 -4 -4 -4 -4 -4 -3 -3 -3 -3 -2 -2 -1 -------- Run | Scr Mat Min Mat Min Exi Min Mat Sto Fac Low Low Dat Pro Fac Low Low Fac Fac Was Fac Upp Upp Zhi Pro Res Arm Lab Res Tes Acc Total Allies 12 | . 1 . . . . . . . . . . . . . . . . 1 . . . . . . 2 4 . . 1 3 Largest Group 3 | . 1 1 . . . . . . . . . . . . . . . 1 . . . . . . 1 2 . . 1 3 Highest-Rated Group 359 | . 10 9 . . . . . . . . . . . . . . . 10 . . . . . . 9 92 . . 10 359 Highest-Rated Ally 124 | . 10 9 . . . . . . . . . . . . . . . 10 . . . . . . 9 46 . . 10 124 Total Orders . | . . . . . . . . . . . . . . . . . . . . . . . . . . . . . . . Ally Attacks 4 | . . . . . . . . . . . . . . . . . . . . . . . . . . 4 . . . . Total Damage 137 | . . . . . . . . . . . . . . . . . . . . . . . . . . 137 . . . . Kills . | . . . . . . . . . . . . . . . . . . . . . . . . . . . . . . . Allies Corrupted . | . . . . . . . . . . . . . . . . . . . . . . . . . . . . . . . Allies Melted 1 | . . . . 1 . . . . . . . . . . . . . . . . . . . . . . . . . . Intel | -11 -10 -10 -9 -9 -9 -8 -8 -8 -7 -7 -7 -7 -6 -6 -6 -6 -5 -4 -4 -4 -4 -4 -4 -3 -3 -3 -3 -2 -2 -1 ------- Run | Scr Mat Min Mat Min Exi Min Mat Sto Fac Low Low Dat Pro Fac Low Low Fac Fac Was Fac Upp Upp Zhi Pro Res Arm Lab Res Tes Acc Robot Analysis Total 6 | . 1 . . . . . . . . . . . . . . . . 1 . . . . 4 . . . . . . . Derelict Logs Recovered 6 | . . . . 1 . . . . . . 2 . 1 . 1 . . . . . . 1 . . . . . . . . Drone Launches . | . . . . . . . . . . . . . . . . . . . . . . . . . . . . . . . Drone Recoveries . | . . . . . . . . . . . . . . . . . . . . . . . . . . . . . . . Exploration | -11 -10 -10 -9 -9 -9 -8 -8 -8 -7 -7 -7 -7 -6 -6 -6 -6 -5 -4 -4 -4 -4 -4 -4 -3 -3 -3 -3 -2 -2 -1 ------------- Run | Scr Mat Min Mat Min Exi Min Mat Sto Fac Low Low Dat Pro Fac Low Low Fac Fac Was Fac Upp Upp Zhi Pro Res Arm Lab Res Tes Acc Turns Passed 17631 | . 1430 239 2478 969 440 1479 2406 837 230 97 66 111 81 672 164 7 881 412 19 1176 208 413 58 68 1268 805 89 332 138 58 Spaces Moved 16733 | 1 605 89 1102 500 244 641 766 304 417 268 228 118 256 869 477 23 1322 747 70 1379 475 427 153 271 2119 1478 145 665 374 200 Core 7 | . . . . . . . . . . . . . . . . . . . . . . . . . . . . 7 . . Treads 3722 | . 68 89 1102 500 244 641 766 304 8 . . . . . . . . . . . . . . . . . . . . . Legs 538 | 1 537 . . . . . . . . . . . . . . . . . . . . . . . . . . . . . Wheels . | . . . . . . . . . . . . . . . . . . . . . . . . . . . . . . . Hover . | . . . . . . . . . . . . . . . . . . . . . . . . . . . . . . . Flight 12466 | . . . . . . . . . 409 268 228 118 256 869 477 23 1322 747 70 1379 475 427 153 271 2119 1478 145 658 374 200 Fastest Speed 19 | 120 120 180 180 180 180 180 180 183 29 29 29 29 29 29 29 29 26 27 27 27 27 27 24 24 19 19 19 19 24 24 Average Speed 66 | 120 185 180 180 180 180 183 201 202 32 29 29 29 31 29 29 29 29 27 27 27 27 27 26 24 20 20 19 22 24 24 Slowest Speed 900 | 120 210 180 180 260 180 200 290 206 206 29 29 29 102 99 29 29 102 114 27 27 27 27 27 24 22 22 19 900 24 24 Overloaded Moves . | . . . . . . . . . . . . . . . . . . . . . . . . . . . . . . . Propulsion Burnouts . | . . . . . . . . . . . . . . . . . . . . . . . . . . . . . . . Robots Hopped 56 | . . . . . . . . . 3 . . 2 . 6 . . 6 7 . 8 . . . . 14 1 . 5 4 . Cave-ins Triggered . | . . . . . . . . . . . . . . . . . . . . . . . . . . . . . . . Teleports 1 | . . . . . . . . . . . . . . . . . . . . . . . . . . 1 . . . . Exploration Rate (%) 50 | 2 87 20 86 94 61 89 51 50 19 44 47 80 47 27 72 8 27 18 70 30 62 60 62 42 60 79 99 14 53 9 Regions Visited 30 Branch Regions 18 Pre-discovered Areas 9 | . 1 . 2 . 1 . . . . . . 1 . . . . . . . . . 1 3 . . . . . . . Known Exits Taken 21 | . . . 1 . . . . 1 1 1 1 1 1 1 1 1 1 . . 1 1 1 1 1 1 1 1 1 1 . Unknown Exits Taken 7 | 1 1 1 . 1 1 1 1 . . . . . . . . . . . . . . . . . . . . . . . Scrap Searched 18 | . . . . 2 . 3 . . . 1 2 . 2 . 1 . . . . . 1 2 . 4 . . . . . . Spaces Dug 456 | . . . 1 . . 1 32 11 18 . . 1 . 46 . . 56 37 . 56 3 . . . 117 55 . 14 5 3 Terrain Destroyed 488 | . 9 . 1 . . 7 48 12 18 . . 1 . 46 . . 56 37 . 56 3 . . . 117 55 . 14 5 3 Melee 456 | . . . 1 . . 1 32 11 18 . . 1 . 46 . . 56 37 . 56 3 . . . 117 55 . 14 5 3 Projectile 1 | . . . . . . . . 1 . . . . . . . . . . . . . . . . . . . . . . AOE 31 | . 9 . . . . 6 16 . . . . . . . . . . . . . . . . . . . . . . . Actions | -11 -10 -10 -9 -9 -9 -8 -8 -8 -7 -7 -7 -7 -6 -6 -6 -6 -5 -4 -4 -4 -4 -4 -4 -3 -3 -3 -3 -2 -2 -1 --------- Run | Scr Mat Min Mat Min Exi Min Mat Sto Fac Low Low Dat Pro Fac Low Low Fac Fac Was Fac Upp Upp Zhi Pro Res Arm Lab Res Tes Acc Total 21439 | . 785 140 1382 536 245 866 1418 415 484 276 227 156 256 1168 501 22 1717 888 69 2069 549 723 167 272 2680 1868 182 769 406 203 Wait 3019 | . 50 30 96 5 . 162 427 29 3 . . 12 . 199 25 . 277 105 . 571 68 297 . 1 363 263 . 28 8 . Move 16592 | . 604 88 1101 499 243 640 765 303 410 267 227 113 255 856 476 22 1309 733 69 1362 474 426 152 270 2090 1475 144 655 365 199 Hop 54 | . . . . . . . . . 3 . . 2 . 6 . . 6 7 . 8 . . . . 13 1 . 4 4 . Pick Up 229 | . 31 2 33 3 2 10 44 5 2 1 . . . 10 . . 16 1 . 9 . . 1 . 13 16 3 15 12 . Fast Attach 47 | . 3 . 1 . . . 2 1 2 . . 1 . 1 . . 2 . . 3 2 . 6 1 7 5 9 1 . . Attach 122 | . 8 3 8 6 . 5 17 2 10 1 . 2 1 12 . . 9 2 . 3 . . . . 4 11 1 11 6 . Detach 10 | . . . . . . . . . . . . 1 . 5 . . 1 . . . . . . . 1 2 . . . . Swap 80 | . 6 2 8 2 . 6 21 7 2 . . . . . . . 5 . . 5 . . 2 . 5 4 2 3 . . Drop 163 | . 14 . 20 1 . 3 17 7 28 . . 1 . 5 . . 12 . . 5 2 . 6 . 13 12 9 5 3 . Fire 381 | . 69 13 112 20 . 39 80 48 . . . . . . . . . . . . . . . . . . . . . . Melee 686 | . . 1 3 . . 1 45 13 24 7 . 24 . 74 . . 62 40 . 67 3 . . . 170 79 14 47 8 4 Ram . | . . . . . . . . . . . . . . . . . . . . . . . . . . . . . . . Kick . | . . . . . . . . . . . . . . . . . . . . . . . . . . . . . . . Crush 1 | . . 1 . . . . . . . . . . . . . . . . . . . . . . . . . . . . Escape Stasis 55 | . . . . . . . . . . . . . . . . . 18 . . 36 . . . . 1 . . . . . Rewire . | . . . . . . . . . . . . . . . . . . . . . . . . . . . . . . . Trap . | . . . . . . . . . . . . . . . . . . . . . . . . . . . . . . . Miscellaneous . | . . . . . . . . . . . . . . . . . . . . . . . . . . . . . . . Route ------- -11/Scrapyard -10/Materials (discovered 4 exits: *Mat x2 / [*Min x2]) -10/Mines -9/Materials (discovered 5 exits: *Mat x3 / *Min x2) -9/Mines (discovered 3 exits: *Mat x2 / *Exi) -9/Exiles -8/Mines -8/Materials (discovered 2 exits: *Fac / *Sto) -8/Storage (discovered 2 exits: *Fac / [Rec]) -7/Factory -7/Lower Caves -7/Lower Caves -7/Data Miner -6/Proximity Caves -6/Factory (discovered 6 exits: *Fac x2 / *Low x2 / *Ext x2) -6/Lower Caves -6/Lower Caves -5/Factory (discovered 5 exits: *Fac x3 / Upp x2) -4/Factory -4/Waste -4/Factory (discovered 2 exits: *Upp x2) -4/Upper Caves -4/Upper Caves (discovered 2 exits: *Res / *Zhi) -4/Zhirov -3/Proximity Caves -3/Research (discovered 4 exits: *Res / *Arm / *Qua x2) -3/Armory -3/Lab -2/Research (discovered 2 exits: *Tes x2) -2/Testing -1/Access (discovered 2 exits: *Sur / Com) To Epsilon Eridani History --------- Turn | Location | Event 1 | -11/Scrapyard | Discovered new exit (range 0) 1 | -11/Scrapyard | Entered Materials 1 | -10/Materials | Discovered new exit (range 8) 344 | -10/Materials | Discovered new exit (range 13) 598 | -10/Materials | Build established: Hauler-Mutant 768 | -10/Materials | Discovered new exit (range 16) 1201 | -10/Materials | Discovered new exit (range 15) 1216 | -10/Materials | Central database locked down 1263 | -10/Materials | Core integrity fell below 50% 1298 | -10/Materials | Lost 4 parts (1p1n2w) 1431 | -10/Materials | Entered Mines 1431 | -10/Mines | Accompanied by 1 ally 1542 | -10/Mines | Core integrity fell below 20% 1652 | -10/Mines | Discovered new exit (range 11) 1670 | -10/Mines | Entered Materials 1670 | -9/Materials | Evolved 2 slots: Propulsion x1, Utility x1 1931 | -9/Materials | Discovered new exit (range 7) 2166 | -9/Materials | Discovered new exit (range 5) 2638 | -9/Materials | Discovered new exit (range 15) 2937 | -9/Materials | Discovered new exit (range 8) 3197 | -9/Materials | Central database locked down 3291 | -9/Materials | Discovered new exit (range 13) 3384 | -9/Materials | Lost 3 parts (1n2w) 3433 | -9/Materials | Core integrity fell below 50% 3623 | -9/Materials | Identified exit to Mines 4148 | -9/Materials | Entered Mines 4264 | -9/Mines | Learned location of 1 exit from Materials 4379 | -9/Mines | Received a Rocket Launcher from a helpful Derelict 4486 | -9/Mines | Assembled infested the area 4491 | -9/Mines | Assisted by a Guerilla fighting off Assembled 4568 | -9/Mines | Lost 6 parts (1p3n2w) 4865 | -9/Mines | Discovered new exit (range 15) 4950 | -9/Mines | Discovered new exit (range 9) 5110 | -9/Mines | Deemed a non-threat by the Exiles lab entrance 5110 | -9/Mines | Discovered new exit (range 5) 5117 | -9/Mines | Entered Exiles 5164 | -9/Exiles | Met 8R-AWN 5195 | -9/Exiles | Met EX-HEX 5269 | -9/Exiles | Met EX-BIN 5294 | -9/Exiles | Aligned with FarCom system 5296 | -9/Exiles | Given EX-Vault access code 5360 | -9/Exiles | Opened EX-Vault 5373 | -9/Exiles | Found Chronowheel 5378 | -9/Exiles | Found 0b10 Alert Chip 5420 | -9/Exiles | Warned to stay clear of 0b10 Research branches 5470 | -9/Exiles | Met EX-DEC 5483 | -9/Exiles | Learned location of Zion (-6) 5535 | -9/Exiles | Discovered new exit (range 14) 5557 | -9/Exiles | Stole two prototypes: 0b10 Alert Chip, Chronowheel 5557 | -9/Exiles | Entered Mines 6822 | -8/Mines | Core integrity fell below 20% 6823 | -8/Mines | Lost 3 parts (3n) 7018 | -8/Mines | Discovered new exit (range 9) 7036 | -8/Mines | Entered Materials 7036 | -8/Materials | Evolved 2 slots: Utility x2 7037 | -8/Materials | Identified exit to Factory 8342 | -8/Materials | Discovered new exit (range 13) 8389 | -8/Materials | Lost 7 parts (2p3n2w) 8498 | -8/Materials | Destroyed 8 combat bots 8505 | -8/Materials | Lost 5 parts (3n2w) 9442 | -8/Materials | Entered Storage 9746 | -8/Storage | Discovered new exit (range 15) 9890 | -8/Storage | Core integrity fell below 50% 9947 | -8/Storage | Destroyed 7 combat bots 10079 | -8/Storage | Discovered exit to Factory (range 5) 10279 | -8/Storage | Entered Factory 10279 | -7/Factory | Evolved 2 slots: Utility x2 10281 | -7/Factory | FarCom data flow suspended 10498 | -7/Factory | Discovered new exit (range 9) 10500 | -7/Factory | Identified exit to Lower Caves 10509 | -7/Factory | Entered Lower Caves 10510 | -7/Lower Caves | Encountered a Warlord checkpoint 10593 | -7/Lower Caves | Build established: Hacker-Sprinter 10605 | -7/Lower Caves | Discovered new exit (range 5) 10606 | -7/Lower Caves | Identified exit to Lower Caves 10606 | -7/Lower Caves | Entered another Lower Caves area 10621 | -7/Lower Caves | Learned 8 Factory zone layouts 10669 | -7/Lower Caves | Discovered new exit (range 10) 10671 | -7/Lower Caves | Learned Factory terminal intel 10672 | -7/Lower Caves | Attracted the attention of an 0b10 checkpoint 10672 | -7/Lower Caves | Identified exit to Data Miner 10672 | -7/Lower Caves | Entered Data Miner 10672 | -7/Data Miner | Discovered new exit (range 6) 10678 | -7/Data Miner | Met Data Miner 10684 | -7/Data Miner | Learned location of Section 7 (-3) 10684 | -7/Data Miner | Acquired the access code to Warlord's prototype stash 10689 | -7/Data Miner | Received God Mode back door access code from Data Miner 10691 | -7/Data Miner | Activated Chronowheel 10694 | -7/Data Miner | Destroyed Data Miner 10697 | -7/Data Miner | Found Prototype Hackware 10697 | -7/Data Miner | Identified Deep Network Scanner 10700 | -7/Data Miner | Data Conduit disabled 10783 | -7/Data Miner | Identified exit to Proximity Caves 10783 | -7/Data Miner | Entered Proximity Caves 10797 | -6/Proximity Caves | Learned 4 Factory zone layouts 10854 | -6/Proximity Caves | Discovered new exit (range 15) 10863 | -6/Proximity Caves | Identified exit to Factory 10864 | -6/Proximity Caves | Entered Factory 10864 | -6/Factory | Evolved 2 slots: Utility x2 10865 | -6/Factory | Identified exit to Factory 10866 | -6/Factory | Loaded intel: 22 terminal locations 10923 | -6/Factory | Discovered new exit (range 12) 10997 | -6/Factory | Identified exit to Lower Caves 10997 | -6/Factory | Identified exit to Extension 11041 | -6/Factory | Fabricated Imp. Flight Unit (x1) 11094 | -6/Factory | Fabricated Imp. Flight Unit? 11120 | -6/Factory | Discovered exit to Factory (range 10) 11270 | -6/Factory | Spotted B-75 Beast 11361 | -6/Factory | Fabricated Fusion Compressor? 11443 | -6/Factory | Fabricated Lrn. Sensor Array? 11491 | -6/Factory | Fabricated Mic. Nuclear Core? 11536 | -6/Factory | Entered Lower Caves 11596 | -6/Lower Caves | Learned Extension trap positions 11652 | -6/Lower Caves | Spotted WS-U2I(f) 11653 | -6/Lower Caves | Encountered a Master Thief 11666 | -6/Lower Caves | Learned Factory garrison access intel 11691 | -6/Lower Caves | Attracted the attention of an 0b10 checkpoint 11697 | -6/Lower Caves | Discovered new exit (range 10) 11699 | -6/Lower Caves | Identified exit to Lower Caves 11700 | -6/Lower Caves | Entered another Lower Caves area 11707 | -6/Lower Caves | Entered Factory 11707 | -5/Factory | Evolved 2 slots: Propulsion x1, Utility x1 11708 | -5/Factory | Identified exit to Factory 11709 | -5/Factory | Loaded intel: 4 garrison access locations 11788 | -5/Factory | Build established: Hacker-Scout 11850 | -5/Factory | Identified exit to Upper Caves 11888 | -5/Factory | Fabricated Imp. Cesium-ion Thruster? 12039 | -5/Factory | Fabricated Imp. Cesium-ion Thruster (x1) 12131 | -5/Factory | Fabricated Lrn. Sensor Array (x1) 12301 | -5/Factory | Fabricated Lrn. Sensor Array? 12398 | -5/Factory | Fabricated Exp. Cesium-ion Thruster? 12555 | -5/Factory | Repaired Broken Fusion Compressor 12588 | -5/Factory | Entered another Factory area 12588 | -4/Factory | Evolved 2 slots: Utility x2 12617 | -4/Factory | Central database locked down 12962 | -4/Factory | Fabricated Imp. Stasis Canceller? 13000 | -4/Factory | Sucked down chute 13000 | -4/Factory | Entered Waste 13000 | -4/Waste | The area was eerily silent 13016 | -4/Waste | Discovered new exit (range 12) 13019 | -4/Waste | Identified exit to Factory 13019 | -4/Waste | Entered Factory 13052 | -4/Factory | Build established: Wizard-Scout 13407 | -4/Factory | Fabricated Adv. Hacking Suite? 13419 | -4/Factory | Fabricated Exp. Propulsion Shielding? 13525 | -4/Factory | Fabricated Adv. Hacking Suite? 13720 | -4/Factory | Fabricated Adv. Hacking Suite? 13744 | -4/Factory | Build established: Hacker-Scout 13914 | -4/Factory | Fabricated Exp. Cesium-ion Thruster? 14083 | -4/Factory | Spotted B-86 Titan 14147 | -4/Factory | Fabricated Exp. Sensor Array (x1) 14160 | -4/Factory | Fabricated Exp. Signal Interpreter? 14169 | -4/Factory | Identified exit to Upper Caves 14195 | -4/Factory | Entered Upper Caves 14309 | -4/Upper Caves | Discovered new exit (range 16) 14312 | -4/Upper Caves | Identified exit to Upper Caves 14403 | -4/Upper Caves | Entered another Upper Caves area 14404 | -4/Upper Caves | Discovered new exit (range 12) 14440 | -4/Upper Caves | Build established: Wizard-Scout 14613 | -4/Upper Caves | Learned location of Quarantine (-3) 14814 | -4/Upper Caves | Discovered new exit (range 5) 14815 | -4/Upper Caves | Identified exit to Zhirov 14816 | -4/Upper Caves | Entered Zhirov 14816 | -4/Zhirov | Discovered new exit (range 3) 14821 | -4/Zhirov | Met Zhirov 14826 | -4/Zhirov | Learned location of Command (-1) 14826 | -4/Zhirov | Learned location of Testing (-2) 14831 | -4/Zhirov | Zhirov requested help retrieving the SGEMP Prototype 14837 | -4/Zhirov | Found Alien Artifact 14837 | -4/Zhirov | Identified Integrated Reactor 14837 | -4/Zhirov | Installed Integrated Reactor, increased core energy generation (+2%) 14861 | -4/Zhirov | Found Alien Artifact 14872 | -4/Zhirov | Identified exit to Proximity Caves 14874 | -4/Zhirov | Entered Proximity Caves 14893 | -3/Proximity Caves | Spotted NV-MJL(f) 14895 | -3/Proximity Caves | Encountered a Master Thief 14896 | -3/Proximity Caves | Spotted IZ-GL9(f) 14897 | -3/Proximity Caves | Encountered a Master Thief 14939 | -3/Proximity Caves | Discovered new exit (range 11) 14942 | -3/Proximity Caves | Identified exit to Research 14942 | -3/Proximity Caves | Entered Research 14942 | -3/Research | Evolved 2 slots: Propulsion x1, Utility x1 14957 | -3/Research | Discovered new exit (range 13) 14960 | -3/Research | Identified exit to Quarantine 15193 | -3/Research | Build established: Wizard-Sprinter 15423 | -3/Research | Repaired Mic. Nuclear Core 15492 | -3/Research | Identified exit to Armory 15581 | -3/Research | Fabricated Exp. Cesium-ion Thruster? 15723 | -3/Research | Found Prototype Slashing Weapon 15863 | -3/Research | Spotted B-86 Titan 15918 | -3/Research | Central database locked down 15973 | -3/Research | Fabricated Exp. System Shield? 16046 | -3/Research | Fabricated Exp. System Shield? 16069 | -3/Research | Fabricated Exp. Hacking Suite? 16138 | -3/Research | Discovered new exit (range 15) 16181 | -3/Research | Identified Nanosword 16181 | -3/Research | Identified Transdimensional Reconstructor 16210 | -3/Research | Entered Armory 16398 | -3/Armory | Fabricated Adv. Reaction Control System? 16418 | -3/Armory | Fabricated Exp. Propulsion Shielding? 16418 | -3/Armory | Fabricated Exp. Utility Shielding? 16440 | -3/Armory | Allied Derelicts emerged from ambush trap array 16453 | -3/Armory | Fabricated Adv. Phase Shifter? 16526 | -3/Armory | Fabricated Exp. System Shield (x1) 16534 | -3/Armory | Fabricated Nanosword (x1) 16613 | -3/Armory | Local fabrication network quarantined 16621 | -3/Armory | Fabricated Exp. System Shield? 16624 | -3/Armory | Repaired Exp. Sensor Array? 16637 | -3/Armory | Fabricated Nanosword (x1) 17007 | -3/Armory | Warped through subspace to slip node 17007 | -3/Armory | Discovered new exit (range 1) 17007 | -3/Armory | Identified exit to Lab 17015 | -3/Armory | Entered Lab 17015 | -3/Lab | Discovered new exit (range 9) 17017 | -3/Lab | Identified exit to Research 17018 | -3/Lab | Unable to decrypt terminal 17018 | -3/Lab | Opened the door to a hidden lab 17019 | -3/Lab | Gained access to the hidden lab's interior 17019 | -3/Lab | Unable to decrypt terminal 17020 | -3/Lab | Found Alien Artifact 17021 | -3/Lab | Detected by scanners 17031 | -3/Lab | Found Integrated Reactor 17031 | -3/Lab | Installed Integrated Reactor, increased core energy generation (+2%) 17034 | -3/Lab | Confronted by A5 17062 | -3/Lab | Destroyed A5 17065 | -3/Lab | Found Exp. Hacking Suite 17075 | -3/Lab | Found Alien Artifact 17075 | -3/Lab | Identified Core Regenerator 17075 | -3/Lab | Used Core Regenerator, restored core integrity (+200) 17086 | -3/Lab | Found Deep Network Scanner 17091 | -3/Lab | Unable to decrypt terminal 17091 | -3/Lab | Unable to decrypt terminal 17094 | -3/Lab | Found Prototype Special Weapon 17094 | -3/Lab | Identified Gui. Remote Datajack 17104 | -3/Lab | Entered Research 17104 | -2/Research | Evolved 2 slots: Utility x2 17166 | -2/Research | Identified Core Reset Matrix 17216 | -2/Research | Identified exit to Testing 17228 | -2/Research | Fabricated Lrg. Storage Unit? 17273 | -2/Research | Intercept squad dispatched 17290 | -2/Research | Spotted Tracker 17290 | -2/Research | Spotted Tracker 17290 | -2/Research | Destroyed Tracker 17315 | -2/Research | Spotted Combat Programmer 17328 | -2/Research | Destroyed Tracker 17340 | -2/Research | Fabricated Centrium Medium Armor Plating? 17341 | -2/Research | Core integrity fell below 50% 17346 | -2/Research | Spotted Combat Programmer 17347 | -2/Research | Destroyed Combat Programmer 17388 | -2/Research | Found Prototype Device 17389 | -2/Research | Identified Exp. Phase Shifter 17397 | -2/Research | Lost 16 parts (1p5n10u) 17436 | -2/Research | Entered Testing 17443 | -2/Testing | Found Prototype Processor 17444 | -2/Testing | Identified Spectral Analyzer 17462 | -2/Testing | Found Prototype Hackware 17463 | -2/Testing | Identified System Mapper 17472 | -2/Testing | Found Prototype Device 17474 | -2/Testing | Identified EM Disruption Field 17507 | -2/Testing | Found Portable AFG 17517 | -2/Testing | Found Exp. Armor Integrity Analyzer 17532 | -2/Testing | Spotted Striker 17532 | -2/Testing | Spotted Striker 17551 | -2/Testing | Spotted Alpha 7 17552 | -2/Testing | Core integrity fell below 20% 17552 | -2/Testing | Stole the SGEMP Prototype 17568 | -2/Testing | Identified exit to Access 17574 | -2/Testing | Entered Access 17574 | -1/Access | Evolved 2 slots: Propulsion x1, Utility x1 17575 | -1/Access | Loaded intel: 105 machine locations 17575 | -1/Access | Loaded intel: 97 trap records 17575 | -1/Access | Identified exit to Surface 17575 | -1/Access | Discovered exit to Surface (range 150) 17575 | -1/Access | Identified exit to Command 17575 | -1/Access | Discovered exit to Command (range 205) 17575 | -1/Access | Delivered the SGEMP Prototype to Zhirov 17575 | -1/Access | Zhirov transferred Access data 17595 | -1/Access | Spotted B-99 Colossus 17632 | *** | Escaped! Last Messages --------------- A013. 17587_ O-24 Administrator locks terminal. 17588_ Slug penetrates Wall. 17599_ Connecting with Terminal... >>Trojan(Botnet) Trojan loaded successfully. Testing... Terminal linked with 0 systems. Awaiting botnet instructions. 17620_ Connecting with Terminal... >>Trojan(Botnet) Trojan loaded successfully. Testing... Terminal linked with 1 system. Awaiting botnet instructions. 17624_ K-01 Serf cleans the Terminal. 17630_ Connecting with Terminal... >>Open Sealed Barrier opened. 17631_ The Access Shell folds into the floor. Map ----- +----------------------------------------------------+ | ####"" # # # # | | ####"" # # # ######## | | ####"" # ""# # ######## | | #### # ""# # ######## | | #### # ""# # ######## | | #### + G############## | | # ##### # ""##############+##+########### | | " # ##### # ""########## #### | | " # ##### # ""########## #### | | # ##### # ########## ## | | # ##### # ########## ## " | | + ##### ################## + " | | # ##### ################## """""" ## | | # ##### ################## """""" ## | | # ##### ################## """""" #### | | # ##### ################## """""" # | | #A ##### ################## """""" # | | # ##### ################################## | | #### ##### ################################## | | ##### ####### ########################## | | #### ##### """T""" """" ###### | | #### ##### """ """ """" BB ######### | | #### ##### """" BB ######### | | #### ##### """" | | #### ##### "" """" | | #### ##### @" """" | | #### ##### """" | | #### ##### """" BB ####+#### | | #### ##### """" BB # # | | #### ##### """" # # | | #### ##### ####### ##################### """ # | | #### ##### ############################# ""F # | | #### ##### ############################# "" # | | #### ##### ###################### # """ # | | #### ##### ###################### # """ # | | #### ##### ###################### # # | | #### k##### ###################### # # | | #### # # # | | #### + # + | | #### ##################### ##### # # | | #### # ## # ##### # # | | #### # ## # ##### + # | | #### + " ## # ##### # # | | #### # """" ## # ##### # # | | # """"" ## # ##### # # | | #"" """"" ## # ##### ######### | | #######"" """" ## # ##### ######### | | #######"Y " ## # #################### | | #######"" #####+## | | #######"" + | +----------------------------------------------------+ Best States ------------- Heat Dissipation 52 Energy Generation 50 Energy Capacity 350 Matter Stores 300 Matter Capacity 300 Sight Range 16 Robot Scan Range 30 Terrain Scan Density 10 ECM Strength 3 Power Amplification 40 Armor Coverage 600 Propulsion Shielding 90 Utility Shielding 90 Melee Speed Boost 30 Phase Shifting 20 Evasion (%) 85 Targeting Accuracy 8 Armor Integrity Analysis 90 Recoil Reduction 3 Offensive Hacking 71 Defensive Hacking 62 Item Schematics ----------------- Med. Storage Unit | -10/Materials | Hacked Imp. Flight Unit | -9/Materials | Scanalyzed Mic. Nuclear Core | -7/Factory | Scanalyzed Hacking Suite | -7/Factory | Scanalyzed Combat Drone Bay | -7/Data Miner | Free Lgt. Regenerative Plating | -7/Data Miner | Free Exp. Terrain Scanner | -7/Data Miner | Free Cloaking Device | -7/Data Miner | Free Mni. Smartbomb Launcher | -7/Data Miner | Free Plasma Sword | -7/Data Miner | Free Lrn. Sensor Array | -6/Factory | Hacked Imp. Cesium-ion Thruster | -6/Factory | Hacked Imp. Propulsion Shielding | -6/Factory | Hacked Power Amplifier | -6/Factory | Hacked Power Sword | -6/Factory | Hacked Imp. Hacking Suite | -6/Factory | Hacked Imp. System Shield | -6/Factory | Hacked Exp. Cesium-ion Thruster | -5/Factory | Hacked Fusion Compressor | -5/Factory | Scanalyzed Exp. Propulsion Shielding | -4/Factory | Hacked Adv. Hacking Suite | -4/Factory | Hacked Adv. System Shield | -4/Factory | Hacked Exp. Signal Interpreter | -4/Factory | Hacked Exp. Sensor Array | -4/Factory | Hacked Mic. Fission Core | -4/Factory | Hacked Imp. Fusion Compressor | -4/Factory | Hacked Assault Drone Bay | -4/Zhirov | Free Exp. Heat Sink | -4/Zhirov | Free Exp. Optical Array | -4/Zhirov | Free Imp. Arc Thrower | -4/Zhirov | Free Exp. System Shield | -3/Research | Hacked Exp. Hacking Suite | -3/Research | Hacked Exp. Melee Analysis Suite | -3/Research | Hacked Adv. Reaction Control System | -3/Research | Hacked Cld. Impulse Thruster | -3/Research | Scanalyzed Nanosword | -3/Research | Scanalyzed Nanoactuators | -3/Research | Scanalyzed Lgt. Particle Reactor | -3/Research | Scanalyzed Maneuvering Thrusters | -3/Research | Scanalyzed Adv. Force Booster | -3/Armory | Hacked Exp. Utility Shielding | -3/Armory | Hacked Imp. Stasis Canceller | -3/Armory | Hacked Adv. Phase Shifter | -3/Armory | Hacked Adv. Cloaking Device | -3/Armory | Hacked Exp. Q-thruster | -2/Research | Hacked Exp. Armor Integrity Analyzer | -2/Research | Hacked Centrium Medium Armor Plating | -2/Research | Hacked Lrg. Storage Unit | -2/Research | Hacked Robot Schematics ------------------ S-27 Virus | -7/Data Miner | Free G-50 Soldier | -7/Data Miner | Free H-66 Slayer | -7/Data Miner | Free I-36 Angel | -7/Data Miner | Free Fabricated ------------ Imp. Flight Unit | x1 | -6/Factory Imp. Flight Unit | x1 | -6/Factory Fusion Compressor | x2 | -6/Factory | Preloaded Lrn. Sensor Array | x1 | -6/Factory Mic. Nuclear Core | x2 | -6/Factory Imp. Cesium-ion Thruster | x1 | -5/Factory Imp. Cesium-ion Thruster | x1 | -5/Factory Lrn. Sensor Array | x1 | -5/Factory Lrn. Sensor Array | x1 | -5/Factory Exp. Cesium-ion Thruster | x1 | -5/Factory Imp. Stasis Canceller | x1 | -4/Factory | Preloaded Adv. Hacking Suite | x1 | -4/Factory Exp. Propulsion Shielding | x1 | -4/Factory Adv. Hacking Suite | x1 | -4/Factory Adv. Hacking Suite | x1 | -4/Factory Exp. Cesium-ion Thruster | x1 | -4/Factory Exp. Sensor Array | x1 | -4/Factory Exp. Signal Interpreter | x1 | -4/Factory Exp. Cesium-ion Thruster | x1 | -3/Research Exp. System Shield | x1 | -3/Research Exp. System Shield | x1 | -3/Research Exp. Hacking Suite | x1 | -3/Research Adv. Reaction Control System | x1 | -3/Armory | Preloaded Exp. Utility Shielding | x1 | -3/Armory Exp. Propulsion Shielding | x1 | -3/Armory Adv. Phase Shifter | x1 | -3/Armory Exp. System Shield | x1 | -3/Armory Nanosword | x1 | -3/Armory Exp. System Shield | x1 | -3/Armory Nanosword | x1 | -3/Armory Lrg. Storage Unit | x1 | -2/Research Centrium Medium Armor Plating | x1 | -2/Research Alien Tech Used ----------------- Integrated Reactor Transdimensional Reconstructor Core Regenerator Achievements -------------- Anyone Home? Challenges ------------ None Game ------ Seed MyomerWeightInterpreter Manual? 0 Play Time 06:56:42 Cumulative 206.6 hours Start 2020.01.30 @ 19:32:31 End 2020.03.15 @ 12:50:17 Sessions 11 Manual Loads 0 Difficulty Rogue Special Mode None Game No. 116 Rogue 108 Adventurer 8 Explorer 0 Win Type 0 Total 9 Types 7/0/0/2/0/0/0 Lore% 72 Gallery% 73 Achievement% 62 Wizard Run 0 Options --------- ASCII 0 Keyboard 0 Movement Mouse Keybinds 0 Fullscreen 2 Font 14/SmallcapsGlow Map View 72x52 Tactical HUD 1 Map Filters NONE Filters NONE Steam 0 RUN: c962d553-5b82-4970-869f-9730e8a4a9a3